bitfinex/quotes_SOLUSD_20251218
["timestamp","ask_amount","ask_price","bid_price","bid_amount"]
[1766077803904,0.68,124.13,124.04,8.06191551]
[1766077804212,12.08942816,124.13,124.04,8.06191551]
[1766077804412,0.68,124.16,124.05,0.7]
[1766077804610,9.80994491,124.14,123.99,0.7]
[1766077804811,8.80994492,124.08,123.94,0.7]
[1766077805017,0.68,124.06,123.95,8.06721472]
[1766077805210,0.68,124.04,123.97,11.40942816]
[1766077805419,0.68,124.06,124.0,11.40942816]
[1766077805710,8.82,124.13,123.95,8.06770118]
[1766077805711,0.68,124.05,123.95,8.06770118]
[1766077805908,0.68,124.08,124.01,11.40942816]
[1766077806127,11.40942816,124.07,124.01,11.40942816]
[1766077806309,0.68,124.08,124.01,11.40942816]
[1766077806511,0.68,124.08,123.96,10.43767296]
[1766077806512,0.68,124.18,124.08,0.7]
[1766077806730,11.40942816,124.17,124.05,10.43767296]
[1766077807025,0.68,124.13,124.0,10.43767296]
[1766077807226,11.40942816,124.15,124.09,11.40942816]
[1766077807414,8.82,124.21,124.12,11.40942816]
[1766077807602,23.77236156,124.29,124.07,8.80994492]
[1766077807603,12.08942816,124.2,124.1,10.43767296]
[1766077807802,0.68,124.2,124.11,0.7]
[1766077808030,8.82,124.27,124.19,11.40942816]
[1766077808213,0.68,124.24,124.18,11.40942816]
[1766077808415,11.40942816,124.22,124.14,0.7]
[1766077808612,0.68,124.23,124.14,11.40942816]
[1766077808811,0.68,124.26,124.13,11.40942816]
[1766077809111,0.68,124.26,124.15,0.7]
[1766077809312,12.08942816,124.18,124.07,0.7]
[1766077809503,0.68,124.18,124.06,8.06053052]
[1766077809705,8.80994492,124.2,124.07,19.46916992]
[1766077809706,11.40942816,124.14,124.07,19.46916992]
[1766077809905,19.93767296,124.19,124.1,11.40942816]
[1766077810207,0.68,124.18,124.11,11.40942816]
[1766077810404,11.40942816,124.15,123.97,0.99999999]
[1766077810633,11.40942816,124.11,124.05,11.40942816]
[1766077810847,11.40942816,124.12,124.05,11.40942816]
[1766077811132,0.68,124.14,124.03,0.7]
[1766077811323,0.68,124.14,124.04,0.7]
[1766077811529,16.86479619,124.15,123.99,8.80994492]
[1766077811530,11.40942816,124.08,124.02,11.40942816]
[1766077811719,0.68,124.14,124.03,8.7625404]
[1766077811921,11.40942816,124.07,123.94,8.8]
[1766077812109,11.40942816,123.99,123.9,20.87754794]
[1766077812310,9.81999999,124.07,123.9,11.40942816]
[1766077812311,0.68,123.96,123.9,11.40942816]
[1766077812514,11.40942816,123.95,123.88,0.7]
[1766077812736,11.40942816,123.95,123.86,25.29017506]
[1766077812737,0.69,123.95,123.86,5.10741759]
[1766077812936,11.40942816,123.93,123.86,5.10741759]
[1766077813145,11.40942816,123.93,123.77,4.20801954]
[1766077813146,11.40942816,123.87,123.7,0.80840743]
[1766077813308,11.40942816,123.87,123.69,80.6934145]
[1766077813309,11.40942816,123.86,123.73,0.7]
[1766077813511,10.43767296,123.87,123.73,0.7]
[1766077813512,10.43767296,123.84,123.73,0.7]
[1766077813706,11.40942816,123.82,123.73,0.1]
[1766077813944,10.43767296,123.8,123.73,0.1]
[1766077814244,11.40942816,123.8,123.74,0.7]
[1766077814550,8.82,123.88,123.74,0.7]
[1766077814734,8.82,123.88,123.73,0.1]
[1766077814735,11.40942816,123.82,123.73,0.8]
[1766077815042,40.27191497,123.94,123.82,0.7]
[1766077815043,8.80994492,123.94,123.82,0.7]
[1766077815212,8.80994492,123.94,123.86,12.10942816]
[1766077815407,8.82,123.96,123.86,0.7]
[1766077815713,40.31049498,124.04,123.86,0.7]
[1766077815931,20.22942816,124.05,123.86,0.7]
[1766077816111,20.22942816,124.05,123.91,11.40942816]
[1766077816313,8.82,124.05,123.94,11.40942816]
[1766077816512,8.82,124.05,123.95,11.40942816]
[1766077816733,8.82,124.05,123.93,0.7]
[1766077816938,8.82,124.05,123.96,11.40942816]
[1766077817243,11.40942816,124.05,123.99,0.7]
[1766077817543,0.99999999,124.13,123.96,20.86778329]
[1766077817728,0.99999999,124.11,123.93,10.43767296]
[1766077817911,11.40942816,124.02,123.94,0.7]
[1766077818113,8.82,124.07,123.99,11.40942816]
[1766077818312,20.86778329,124.34,123.99,11.40942816]
[1766077818313,0.2,124.16,124.06,11.40942816]
[1766077818513,11.40942816,124.15,124.05,0.7]
[1766077818728,0.2,124.16,124.07,0.7]
[1766077818913,8.04764204,124.26,124.13,0.7]
[1766077819108,16.86701147,124.27,124.17,0.7]
[1766077819345,8.82,124.27,124.18,0.7]
[1766077819642,19.36,124.41,124.18,0.7]
[1766077819643,8.82,124.36,124.18,0.7]
[1766077819841,8.82,124.36,124.27,11.40942816]
[1766077820135,8.82,124.36,124.25,0.7]
[1766077820341,8.82,124.36,124.2,11.13767296]
[1766077820342,16.861417,124.36,124.2,11.13767296]
[1766077820550,11.40942816,124.26,124.17,8.05283289]
[1766077820729,40.70554803,124.33,124.18,0.7]
[1766077820931,11.40942816,124.24,124.05,12.40942815]
[1766077821153,11.40942816,124.23,124.17,0.7]
[1766077821354,11.40942816,124.26,124.2,11.40942816]
[1766077821649,11.40942816,124.26,124.11,8.80994492]
[1766077821650,11.40942816,124.21,124.11,0.7]
[1766077821849,8.82,124.27,124.14,0.7]
[1766077821850,10.43767296,124.24,124.14,0.7]
[1766077822032,11.40942816,124.22,124.16,11.40942816]
[1766077822233,11.40942816,124.25,124.19,11.40942816]
[1766077822438,11.40942816,124.26,124.15,8.05456672]
[1766077822623,11.40942816,124.22,124.15,0.7]
[1766077822822,11.40942816,124.23,124.17,11.40942816]
[1766077823040,10.43767296,124.24,124.11,11.13767296]
[1766077823250,11.40942816,124.22,124.15,0.7]
[1766077823451,10.43767296,124.23,124.16,11.42729075]
[1766077823634,11.42729075,124.22,124.15,0.7]
[1766077823836,24.31735613,124.27,124.11,10.43767296]
[1766077823837,4.19978639,124.27,124.16,0.7]
[1766077824035,11.42729075,124.22,124.16,11.42729075]
[1766077824237,10.43767296,124.23,124.15,11.42729075]
[1766077824441,11.42729075,124.25,124.18,0.7]
[1766077824663,11.42729075,124.22,124.16,11.42729075]
[1766077824959,10.43767296,124.27,124.19,11.42729075]
[1766077825129,10.43767296,124.25,124.18,11.42729075]
[1766077825333,11.42729075,124.24,124.17,0.7]
[1766077825632,11.42729075,124.24,124.05,12.42729074]
[1766077825633,11.42729075,124.22,124.16,11.42729075]
[1766077825832,10.43767296,124.19,124.11,11.42729075]
[1766077826140,8.80994492,124.21,124.13,0.7]
[1766077826337,11.42729075,124.14,124.09,0.7]
[1766077826640,8.80994492,124.17,124.09,0.7]
[1766077826839,11.42729075,124.16,124.09,0.7]
[1766077827038,11.42729075,124.15,124.08,0.7]
[1766077827229,11.42729075,124.15,124.0,40.91737426]
[1766077827230,11.42729075,124.11,123.94,41.06034553]
[1766077827430,60.08211028,124.18,123.95,20.16819377]
[1766077827431,10.43767296,124.1,123.95,20.16819377]
[1766077827630,10.43767296,124.1,123.89,40.24178526]
[1766077827631,8.82,124.1,123.96,11.42729075]
[1766077827851,19.25767296,124.1,124.0,0.7]
[1766077828060,11.42729075,124.09,124.03,11.42729075]
[1766077828236,19.25767296,124.1,124.02,11.42729075]
[1766077828443,11.42729075,124.09,124.03,11.42729075]
[1766077828647,10.43767296,124.13,124.06,11.42729075]
[1766077828844,10.43767296,124.13,124.03,0.7]
[1766077829150,20.24729075,124.16,124.1,11.42729075]
[1766077829464,8.80994492,124.1,123.9,12.42729074]
[1766077829671,11.42729075,124.02,123.95,0.7]
[1766077829840,11.42729075,124.01,123.95,12.12729075]
[1766077830036,11.42729075,124.01,123.86,41.36748488]
[1766077830037,11.42729075,123.98,123.83,0.7]
[1766077830346,10.43767296,124.01,123.83,0.7]
[1766077830347,11.42729075,123.99,123.92,0.7]
[1766077830551,11.42729075,123.97,123.85,20.18568352]
[1766077830766,11.42729075,123.97,123.78,11.46753504]
[1766077830767,11.42729075,123.92,123.86,0.7]
[1766077830936,10.43767296,123.95,123.86,0.7]
[1766077831136,10.43767296,123.95,123.87,11.42729075]
[1766077831492,11.42729075,123.89,123.77,0.7]
[1766077831652,0.99999999,124.03,123.8,0.7]
[1766077831827,8.06375065,124.02,123.88,0.7]
[1766077832034,8.80994492,124.01,123.92,12.12729075]
[1766077832340,11.42729075,123.97,123.88,0.7]
[1766077832646,8.82,124.04,123.95,11.42729075]
[1766077832855,8.82,124.04,123.98,11.42729075]
[1766077833037,40.27191497,124.18,123.99,0.7]
[1766077833038,11.42729075,124.06,123.99,0.7]
[1766077833359,16.87745114,124.11,124.02,11.42729075]
[1766077833531,8.82,124.11,124.04,11.42729075]
[1766077833732,37.00489289,124.18,124.06,0.7]
[1766077833932,37.00489289,124.18,124.08,11.42729075]
[1766077834131,11.42729075,124.14,124.08,0.7]
[1766077834338,16.87282654,124.18,124.03,11.42729075]
[1766077834339,11.42729075,124.09,124.03,11.42729075]
[1766077834554,11.42729075,124.12,124.05,0.7]
[1766077834759,11.42729075,124.13,124.07,12.12729075]
[1766077835142,8.80994492,124.17,124.07,11.42729075]
[1766077835346,11.42729075,124.15,124.06,0.7]
[1766077835551,11.42729075,124.12,124.06,0.7]
[1766077835747,10.43767296,124.15,124.07,11.42729075]
[1766077836061,11.42729075,124.17,124.1,11.42729075]
[1766077836251,11.42729075,124.2,124.13,0.7]
[1766077836455,20.12254687,124.24,124.13,12.12729075]
[1766077837065,11.42729075,124.21,124.15,11.42729075]
[1766077837366,11.42729075,124.21,124.13,0.7]
[1766077837367,10.43767296,124.19,124.13,0.7]
[1766077837784,11.42729075,124.18,124.13,0.7]
[1766077837945,8.04893754,124.24,124.14,19.48256456]
[1766077838144,12.2451847,124.29,124.21,12.12729075]
[1766077838338,11.42729075,124.27,124.21,0.7]
[1766077838644,4.19397507,124.31,124.25,11.42729075]
[1766077838848,8.04298202,124.34,124.27,11.42729075]
[1766077839156,11.42729075,124.4,124.34,0.7]
[1766077839361,8.03867726,124.4,124.34,0.7]
[1766077839571,11.42729075,124.4,124.34,12.12729075]
[1766077839870,8.0379147,124.42,124.34,12.12729075]
[1766077840077,8.82,124.45,124.36,12.12729075]
[1766077840241,8.82,124.45,124.39,12.12729075]
[1766077840441,8.82,124.45,124.39,0.7]
[1766077840442,11.62729075,124.44,124.39,0.7]
[1766077840668,8.2360841,124.44,124.35,0.7]
[1766077840841,10.43767296,124.43,124.35,12.12729075]
[1766077841046,0.2,124.44,124.37,11.42729075]
[1766077841259,11.42729075,124.43,124.33,0.7]
[1766077841491,10.43767296,124.41,124.34,0.7]
[1766077841641,48.41622719,124.44,124.23,0.7]
[1766077841846,10.43767296,124.37,124.3,11.42729075]
[1766077842045,8.80994492,124.4,124.25,12.12729075]
[1766077842046,10.43767296,124.35,124.25,12.12729075]
[1766077842262,10.43767296,124.35,124.13,8.8]
[1766077842263,40.45065406,124.34,124.09,0.8058667]
[1766077842463,11.42729075,124.28,124.2,8.77093506]
[1766077842776,11.42729075,124.28,124.17,20.13320625]
[1766077842777,11.42729075,124.28,124.23,0.72]
[1766077842982,8.82,124.29,124.23,0.72]
[1766077843370,11.42729075,124.27,124.23,0.72]
[1766077843576,10.43767296,124.26,124.19,0.72]
[1766077843774,11.42729075,124.24,124.19,0.72]
[1766077843982,11.42729075,124.24,124.09,40.71022043]
[1766077843983,8.80994492,124.25,124.12,0.72]
[1766077844183,8.82,124.23,124.12,0.72]
[1766077844485,8.82,124.23,124.06,11.42729075]
[1766077844486,10.43767296,124.16,124.06,11.42729075]
[1766077844657,8.82,124.15,124.08,12.14729075]
[1766077844863,8.82,124.15,124.05,0.72]
[1766077845057,8.82,124.15,124.06,0.72]
[1766077845371,8.05542129,124.14,124.06,0.72]
[1766077845555,8.05542129,124.14,124.06,10.73854638]
[1766077845760,8.82,124.15,124.06,0.72]
[1766077846095,19.25767296,124.17,124.09,10.73854638]
[1766077846392,8.82,124.17,124.12,0.72]
[1766077846682,10.01854638,124.17,124.09,0.72]
[1766077846982,10.01854638,124.15,124.1,0.72]
[1766077847187,10.43767296,124.19,124.1,0.72]
[1766077847485,10.01854638,124.17,124.11,0.72]
[1766077847787,10.01854638,124.12,123.97,8.80994492]
[1766077847959,10.01854638,124.12,123.91,0.80703736]
[1766077847960,10.01854638,124.02,123.95,10.01854638]
[1766077848165,8.82,124.04,123.95,10.01854638]
[1766077848383,10.01854638,124.02,123.95,10.01854638]
[1766077848679,0.66,124.07,123.93,28.24161942]
[1766077848878,10.01854638,124.05,123.99,10.01854638]
[1766077849184,8.82,124.18,124.04,10.01854638]
[1766077849382,28.84943298,124.16,124.06,10.01854638]
[1766077849579,10.01854638,124.14,124.07,10.01854638]
[1766077849773,20.12701174,124.22,124.12,10.01854638]
[1766077850084,24.25,124.22,123.98,0.8065817]
[1766077850385,8.04958544,124.23,123.98,0.8065817]
[1766077850386,0.66,124.13,124.04,10.73854638]
[1766077850679,8.82,124.13,124.06,10.01854638]
[1766077850893,10.01854638,124.12,124.06,0.72]
[1766077851055,19.25767296,124.13,124.03,10.73854638]
[1766077851256,8.0567193,124.12,124.03,0.72]
[1766077851456,18.83854638,124.12,124.05,10.73854638]
[1766077851684,10.01854638,124.15,124.07,0.72]
[1766077851874,10.01854638,124.16,124.09,0.72]
[1766077852053,8.82,124.16,124.09,10.73854638]
[1766077852252,28.18262339,124.19,124.04,0.72]
[1766077852253,10.01854638,124.15,124.04,0.72]
[1766077852677,10.01854638,124.08,124.02,0.72]
[1766077852872,19.25767296,124.12,123.94,0.99999999]
[1766077853079,19.25767296,124.12,124.02,0.72]
[1766077853080,10.01854638,124.07,124.02,0.72]
[1766077853387,19.15698952,124.08,123.91,0.72]
[1766077853578,19.15698952,124.08,123.95,0.72]
[1766077853759,10.01854638,124.03,123.95,0.72]
[1766077854086,0.66,124.12,123.99,0.72]
[1766077854274,0.66,124.12,124.01,0.72]
[1766077854275,10.01854638,124.09,124.01,0.72]
[1766077854479,10.43767296,124.11,124.01,0.72]
[1766077854686,0.66,124.12,124.01,0.72]
[1766077855284,10.01854638,124.12,124.05,0.72]
[1766077855487,10.01854638,124.17,124.09,0.72]
[1766077855796,9.48,124.22,124.11,0.72]
[1766077856090,10.01854638,124.25,124.17,0.72]
[1766077856294,8.04311107,124.33,124.21,0.72]
[1766077856454,10.01854638,124.29,124.21,0.72]
[1766077856859,0.66,124.32,124.21,0.72]
[1766077857090,10.43767296,124.3,124.21,0.72]
[1766077857261,10.01854638,124.29,124.22,0.72]
[1766077857576,10.01854638,124.32,124.24,10.01854638]
[1766077857758,40.19910259,124.39,124.24,10.01854638]
[1766077857759,10.01854638,124.33,124.25,0.72]
[1766077858159,36.9611801,124.38,124.16,40.65964316]
[1766077858160,0.66,124.34,124.21,8.05037112]
[1766077858372,10.01854638,124.27,124.22,0.72]
[1766077858692,8.82,124.31,124.22,0.72]
[1766077858870,10.01854638,124.28,124.22,0.72]
[1766077859356,28.15768302,124.3,124.22,0.72]
[1766077859758,8.04505229,124.3,124.22,0.72]
[1766077859960,10.01854638,124.27,124.22,0.72]
[1766077860162,10.43767296,124.27,124.18,8.05279683]
[1766077860373,10.43767296,124.27,124.19,0.72]
[1766077860758,10.43767296,124.27,124.05,0.71]
[1766077860759,10.01854638,124.2,124.05,0.71]
[1766077860961,10.01854638,124.2,124.04,0.99999999]
[1766077860962,10.01854638,124.14,124.07,0.71]
[1766077861194,10.43767296,124.15,124.01,0.71]
[1766077861521,10.43767296,124.1,124.03,0.71]
[1766077861794,10.43767296,124.12,124.03,0.71]
[1766077862483,10.01854638,124.12,124.04,0.71]
[1766077862790,10.01854638,124.12,123.95,0.99999999]
[1766077862791,10.43767296,124.09,123.95,0.71]
[1766077862982,18.49263638,124.15,123.92,10.01854638]
[1766077862983,10.01854638,124.0,123.92,10.01854638]
[1766077863189,10.01854638,124.0,123.75,10.01854638]
[1766077863190,10.01854638,123.98,123.93,0.71]
[1766077863367,10.43767296,124.03,123.93,8.06883534]
[1766077863567,10.01854638,124.01,123.95,0.71]
[1766077863892,39.42324658,124.04,123.9,8.07053323]
[1766077864104,10.43767296,124.03,123.94,0.71]
[1766077864389,10.01854638,124.01,123.94,0.71]
[1766077864594,10.01854638,123.99,123.94,0.71]
[1766077864893,10.01854638,124.02,123.94,0.71]
[1766077865060,0.68,124.1,123.98,10.01854638]
[1766077865264,9.48994492,124.11,124.01,0.71]
[1766077865466,10.43767296,124.07,123.97,0.71]
[1766077865681,10.01854638,124.05,123.97,10.01854638]
[1766077865879,0.76831959,124.09,124.03,10.01854638]
[1766077866063,10.01854638,124.08,124.04,0.71]
[1766077866277,10.01854638,124.07,124.01,0.71]
[1766077866597,19.25767296,124.08,123.97,0.71]
[1766077866768,10.01854638,124.03,123.98,0.71]
[1766077866967,19.25767296,124.08,123.95,0.71]
[1766077866968,10.01854638,124.01,123.95,0.71]
[1766077867172,8.80994492,124.03,123.9,0.71]
[1766077867390,19.25767296,124.02,123.91,0.71]
[1766077867589,10.01854638,123.98,123.92,0.71]
[1766077867789,10.43767296,124.02,123.94,0.71]
[1766077867991,10.01854638,124.01,123.94,10.01854638]
[1766077868181,10.01854638,124.0,123.95,0.71]
[1766077868589,10.01854638,123.98,123.89,20.27885383]
[1766077868901,10.01854638,123.97,123.91,8.07029822]
[1766077869066,10.01854638,124.01,123.94,0.71]
[1766077869272,0.68,124.07,123.96,0.71]
[1766077869466,10.01854638,124.06,124.0,0.71]
[1766077869689,8.82,124.11,124.01,0.71]
[1766077869997,10.01854638,124.09,124.01,0.71]
[1766077870200,10.01854638,124.08,124.01,0.71]
[1766077870388,10.01854638,124.06,124.01,0.71]
[1766077870571,10.01854638,124.06,123.93,8.8]
[1766077870572,10.01854638,124.04,123.96,0.71]
[1766077870878,10.01854638,124.04,123.97,0.71]
[1766077871079,0.68,124.08,123.97,8.77627275]
[1766077871392,8.80994492,124.1,123.93,8.8]
[1766077871393,10.01854638,124.0,123.93,8.8]
[1766077871577,8.74328174,124.02,123.92,0.71]
[1766077871781,10.01854638,124.0,123.93,8.77900841]
[1766077871968,16.88306486,124.03,123.94,0.71]
[1766077872167,16.88306486,124.03,123.89,0.1]
[1766077872168,10.01854638,123.95,123.89,0.81]
[1766077872372,10.01854638,123.95,123.89,8.88150529]
[1766077872668,19.25767296,124.01,123.91,0.65]
[1766077872872,10.43767296,123.97,123.89,0.1]
[1766077873094,10.01854638,123.93,123.89,0.1]
[1766077873287,10.43767296,123.97,123.9,0.65]
[1766077873603,10.01854638,123.97,123.91,0.65]
[1766077873775,0.7,124.0,123.91,0.65]
[1766077874100,10.01854638,123.95,123.91,0.65]
[1766077874316,10.01854638,123.98,123.91,10.01854638]
[1766077874477,60.80394152,124.06,123.96,0.65]
[1766077874478,10.01854638,124.03,123.96,0.65]
[1766077874978,8.76011787,124.07,123.97,0.65]
[1766077875178,10.01854638,124.0,123.94,0.65]
[1766077875380,10.01854638,123.99,123.94,0.65]
[1766077875693,10.43767296,124.02,123.94,0.65]
[1766077875898,10.01854638,124.01,123.95,0.65]
[1766077876110,10.01854638,124.02,123.95,0.65]
[1766077876275,10.01854638,124.02,123.89,0.1]
[1766077876478,8.82,124.07,123.93,10.66854638]
[1766077876479,10.01854638,124.0,123.93,10.66854638]
[1766077876679,10.43767296,124.05,123.96,10.01854638]
[1766077876904,10.43767296,124.05,123.96,0.65]
[1766077877090,19.24761788,124.04,123.96,0.65]
[1766077877293,10.01854638,123.99,123.92,0.65]
[1766077877480,10.01854638,123.98,123.92,0.65]
[1766077877680,18.50174508,124.01,123.92,8.71964069]
[1766077877906,10.43767296,124.01,123.93,10.01854638]
[1766077878094,10.43767296,124.03,123.94,0.65]
[1766077878406,16.88061583,124.06,123.97,0.65]
[1766077878606,10.01854638,124.03,123.97,0.65]
[1766077878783,10.01854638,124.01,123.95,0.65]
[1766077878983,10.43767296,124.03,123.95,0.65]
[1766077879404,10.01854638,124.02,123.95,0.65]
[1766077879609,10.01854638,123.99,123.92,8.06917206]
[1766077879911,10.01854638,123.99,123.93,0.65]
[1766077880092,0.7,123.98,123.89,0.1]
[1766077880403,10.43767296,123.98,123.9,0.65]
[1766077880782,10.01854638,123.98,123.9,10.01854638]
[1766077881005,20.85641377,124.03,123.93,0.65]
[1766077881006,10.43767296,124.01,123.93,0.65]
[1766077881308,10.01854638,123.95,123.89,0.75]
[1766077881516,8.80994492,124.0,123.89,0.75]
[1766077881517,10.01854638,123.93,123.89,0.75]
[1766077881731,10.01854638,123.94,123.89,0.1]
[1766077882310,10.01854638,123.92,123.89,0.1]
[1766077882511,0.7,123.96,123.89,0.1]
[1766077882721,19.25767296,123.97,123.89,0.1]
[1766077882722,10.01854638,123.91,123.89,0.1]
[1766077882897,10.01854638,123.92,123.89,0.1]
[1766077883205,10.01854638,123.93,123.89,0.1]
[1766077883507,10.01854638,123.96,123.9,0.65]
[1766077883707,37.05297076,123.97,123.89,0.1]
[1766077883907,10.01854638,123.93,123.89,0.1]
[1766077884212,0.7,123.94,123.89,0.1]
[1766077884513,10.01854638,123.9,123.89,0.1]
[1766077884813,11.13767296,123.94,123.89,0.1]
[1766077884814,10.01854638,123.92,123.89,0.1]
[1766077884983,10.01854638,123.91,123.89,0.1]
[1766077885186,10.01854638,123.9,123.89,0.1]
[1766077885401,10.01854638,123.9,123.86,0.65]
[1766077885402,0.63,123.89,123.74,0.65]
[1766077885707,10.01854638,123.87,123.8,10.01854638]
[1766077885911,19.25767296,123.95,123.86,0.65]
[1766077886092,10.01854638,123.9,123.82,10.01854638]
[1766077886298,10.01854638,123.89,123.83,0.65]
[1766077886606,10.01854638,123.93,123.86,10.01854638]
[1766077886808,10.01854638,123.97,123.9,10.01854638]
[1766077887011,8.82,124.01,123.93,10.01854638]
[1766077887214,10.01854638,124.0,123.95,0.65]
[1766077887411,10.01854638,123.96,123.89,0.65]
[1766077887709,39.29575586,123.99,123.89,0.65]
[1766077887910,11.06767296,123.99,123.9,0.65]
[1766077888109,16.88471325,124.0,123.91,0.65]
[1766077888317,16.88378395,124.02,123.92,0.65]
[1766077888491,10.01854638,123.96,123.88,18.50980576]
[1766077888691,10.01854638,123.94,123.89,0.65]
[1766077888911,10.01854638,123.97,123.9,0.65]
[1766077889213,40.8150808,124.04,123.94,10.01854638]
[1766077889214,8.82,124.04,123.94,10.01854638]
[1766077889418,8.05931656,124.08,123.98,8.06581706]
[1766077889594,8.68876067,124.09,123.99,0.65]
[1766077889798,8.82,124.1,124.0,10.01854638]
[1766077890102,10.01854638,124.07,124.01,0.65]
[1766077890307,11.06767296,124.06,123.94,8.06799911]
[1766077890509,10.01854638,124.03,123.98,0.65]
[1766077890814,10.01854638,124.03,123.96,10.01854638]
[1766077890815,0.63,124.06,123.96,8.06670118]
[1766077891014,0.63,124.04,123.94,0.65]
[1766077891218,10.01854638,123.99,123.94,0.65]
[1766077891391,10.01854638,123.96,123.81,81.10073577]
[1766077891586,8.06520365,123.99,123.89,10.66854638]
[1766077891803,10.01854638,123.98,123.91,8.07031722]
[1766077891997,10.01854638,123.99,123.92,0.65]
[1766077892196,19.25767296,124.02,123.94,0.65]
[1766077892518,10.01854638,124.01,123.94,0.65]
[1766077892733,10.01854638,123.99,123.94,0.65]
[1766077893020,10.01854638,123.99,123.92,0.65]
[1766077893190,8.82,124.02,123.94,0.65]
[1766077893391,10.01854638,124.0,123.94,0.65]
[1766077893592,17.51374159,124.02,123.91,0.65]
[1766077893927,10.01854638,123.97,123.91,0.65]
[1766077894092,10.01854638,123.95,123.91,0.65]
[1766077894696,10.01854638,123.98,123.91,0.65]
[1766077894905,10.01854638,123.99,123.93,0.65]
[1766077895197,16.88374159,124.02,123.94,0.65]
[1766077895400,8.82,124.02,123.94,0.65]
[1766077895606,8.82,124.02,123.94,8.06818288]
[1766077895927,20.15135868,124.07,123.95,0.65]
[1766077895928,0.63,124.06,123.95,0.65]
[1766077896137,10.03780323,124.03,123.97,0.65]
[1766077896434,0.63,124.11,124.0,0.65]
[1766077896610,10.03780323,124.06,123.98,11.08767296]
[1766077896817,10.03780323,124.05,123.99,0.65]
[1766077897136,10.03780323,124.06,124.0,0.65]
[1766077897348,10.03780323,124.08,124.0,10.03780323]
[1766077897626,0.63,124.1,124.01,0.65]
[1766077897836,0.63,124.1,124.01,8.71363631]
[1766077897991,41.23088675,124.12,124.01,8.71363631]
[1766077897992,12.2690885,124.12,124.03,11.08767296]
[1766077898197,12.2690885,124.12,124.03,0.65]
[1766077898198,10.03780323,124.07,124.03,0.65]
[1766077898430,10.03780323,124.08,124.03,0.65]
[1766077898602,10.03780323,124.04,123.97,11.08767296]
[1766077898816,0.63,124.08,123.98,0.65]
[1766077899011,10.03780323,124.04,123.98,0.65]
[1766077899320,10.03780323,124.04,124.0,0.65]
[1766077899716,10.03780323,124.04,124.0,8.7143537]
[1766077900103,10.03780323,124.04,124.0,0.65]
[1766077900633,8.06017537,124.07,123.97,11.08767296]
[1766077900634,8.69017537,124.07,123.97,11.08767296]
[1766077900925,10.03780323,124.03,123.98,8.71531876]
[1766077901227,10.03780323,124.03,123.98,0.65]
[1766077901427,8.05955279,124.08,123.98,0.65]
[1766077901613,8.06006535,124.07,123.99,8.71471784]
[1766077901816,10.03780323,124.04,123.99,8.71471784]
[1766077902011,10.03780323,124.04,123.99,0.65]
[1766077902222,28.2078495,124.08,123.99,0.65]
[1766077902423,11.06767296,124.09,123.99,8.06485763]
[1766077902726,10.03780323,124.07,124.01,0.68]
[1766077902944,10.43767296,124.11,123.98,8.74561118]
[1766077902945,10.03780323,124.03,123.98,8.74561118]
[1766077903224,0.63,124.06,123.96,8.8]
[1766077903424,8.82,124.06,123.98,8.06553059]
[1766077903607,8.05996614,124.07,123.98,0.68]
[1766077904013,10.03780323,124.03,123.98,0.68]
[1766077904213,10.03780323,124.04,123.98,8.06562955]
[1766077904415,10.03780323,124.06,124.0,0.68]
[1766077904616,8.82,124.08,124.0,10.03780323]
[1766077904815,10.03780323,124.07,124.02,0.68]
[1766077905314,10.03780323,124.05,123.99,0.68]
[1766077905616,10.03780323,124.06,124.01,0.68]
[1766077905809,38.63872628,124.11,124.01,8.74349668]
[1766077906015,10.03780323,124.08,124.03,0.68]
[1766077906215,10.03780323,124.07,124.03,0.68]
[1766077906428,8.05743444,124.11,124.03,0.68]
[1766077906639,4.21184885,124.13,124.09,10.03780323]